[Event "Czech Youth U16 Boys 2024"]
[Site "Kouty nad Desnou"]
[Date "2024.03.14"]
[Round "7.7"]
[White "Stein, Michael"]
[Black "Zemek, Antonin"]
[Result "0-1"]
[ECO "C11"]
[WhiteElo "1883"]
[BlackElo "1870"]
[Annotator "NA RC"]
[PlyCount "102"]
[EventDate "2024.03.10"]
[EventType "swiss"]
[EventCountry "CZE"]
[SourceTitle "playchess.com"]
[Source "ChessBase"]
[SourceQuality "1"]
[TimeControl "40/5400+30:1800+30"]

1. e4 {[%emt 0:00:01]} e6 {[%emt 0:00:39]} 2. d4 {[%emt 0:00:08]} d5 {[%emt 0:00:09]} 3. Nc3 {[%emt 0:00:10]} Nf6 {[%emt 0:00:52]} 4. e5 {[%emt 0:00:09]} Nfd7 {[%emt 0:00:29]} 5. f4 {[%emt 0:00:05]} c5 {[%emt 0:00:31]} 6. Nf3 {[%emt 0:00:09]} Nc6 {[%emt 0:00:36]} 7. Be3 {[%emt 0:00:09]} a6 {[%emt 0:01:04]} 8. Qd2 {[%emt 0:01:27]} b5 {[%emt 0:00:37]} 9. a3 {[%emt 0:04:03]} Qa5 {[%emt 0:02:50] is now more promising than 9...Qb6. C11: French: Classical System: 4 e5 and 4 Bg5 dxe4.} 10. dxc5 {[%emt 0:07:45]} Bxc5 {[%emt 0:08:09]} 11. Bxc5 {[%emt 0:10:38]} Nxc5 {[%emt 0:00:13]} 12. Nd4 {[%emt 0:02:22]} Qb6 {[%emt 0:03:56]} 13. Nxc6 {[%emt 0:01:57]} Qxc6 {[%emt 0:01:54]} 14. Be2 {[%emt 0:05:47]} Bb7 {[%emt 0:04:01]} 15. Bf3 $146 {[%emt 0:04:24]} ({Predecessor:} 15. Qd4 O-O 16. O-O Rfd8 17. Nd1 Qb6 18. Rb1 Rab8 19. Nf2 Bc6 20. Nd3 Nxd3 21. Qxb6 Rxb6 22. Bxd3 {½-½ Susla,V (2308)-Kahl,F (2394) SA-2019-0-00681}) 15... Rc8 {[%emt 0:07:59]} 16. O-O {[%emt 0:03:25]} O-O {[%emt 0:06:42]} 17. Qf2 {[%emt 0:06:48]} Nd7 {[%emt 0:04:45]} 18. Kh1 {[%emt 0:03:57]} f6 {[%emt 0:07:46]} 19. Qg3 {[%emt 0:04:24]} Qb6 {[%emt 0:10:27]} 20. Rad1 {[%emt 0:03:41]} a5 {[%emt 0:05:34]} 21. Qh3 {[%emt 0:06:48]} f5 {[%emt 0:05:14]} (21... fxe5 $17 22. Bxd5 (22. Nxd5 exd5 23. Qxd7 e4 $15) 22... exd5 (22... Bxd5 23. Nxd5 exd5 24. Qxd7 $11) 23. Qxd7 Rf7 (23... Rxf4 $2 {is the wrong capture.} 24. Nxd5 Qc5 25. Nxf4 $18) 24. Qxb5 Qxb5 25. Nxb5 Rxc2) 22. Rd2 {[%emt 0:08:36]} b4 {[%emt 0:03:45]} 23. Ne2 {[%emt 0:03:22]} Ba6 {[%emt 0:04:46]} 24. Rfd1 {[%emt 0:04:35] [#]} (24. axb4 $1 $15 Qxb4 25. c3) 24... bxa3 {[%emt 0:03:44]} (24... Bxe2 $1 $17 25. Bxe2 Nc5) 25. bxa3 {[%emt 0:02:23] [#]} Bxe2 $1 {[%emt 0:02:48]} 26. Rxe2 {[%emt 0:01:13]} Rc3 {[%emt 0:00:23]} 27. g4 {[%emt 0:01:23]} Qa6 $2 {[%emt 0:03:27]} ({Don't take} 27... Rxa3 28. Rg2 $17) ({Better is} 27... g6 $19 28. Qg2 fxg4 (28... Rxa3 29. Bxd5 fxg4 30. Qxg4 $17 exd5 31. Qxd7 $11) 29. Qxg4 Rf5) 28. Qg2 {[%emt 0:02:08]} Nc5 {[%emt 0:00:55]} (28... Rxa3 29. Bxd5 exd5 30. Qxd5+ Kh8 31. Rg2 $11) ({Black should try} 28... fxg4 $19 29. Qxg4 g6 (29... Rxa3 30. Bxd5 exd5 31. Rg2 $19)) 29. gxf5 {[%emt 0:01:36]} Rxf5 {[%emt 0:00:08]} 30. Rg1 {[%emt 0:00:32]} (30. Rf2 $17) 30... g6 {[%emt 0:01:20]} ({Nicht} 30... Rxa3 31. Qxg7#) 31. Rd2 {[%emt 0:03:11]} (31. Bg4 $142 Rf7 (31... Rxf4 32. Bh5 $14) 32. Rf1) 31... Rxf4 {[%emt 0:03:06]} 32. Bh5 $1 {[%emt 0:00:41]} Rf7 $2 {[%emt 0:03:55]} (32... Rxa3 $2 {zu gefräßig.} 33. Bxg6 Kf8 34. Bd3 $18 (34. Bxh7 Ra1 $18 (34... Raf3 $18))) (32... Kf8 $11 33. Qg5 Qc4 34. Qd8+ Kg7 35. Bxg6 hxg6 36. Qe7+ Rf7 37. Rxg6+ Kxg6 38. Rg2+ Kf5 39. Qg5+ Ke4 40. Rg4+ Kf3 41. Rxc4 Rxc4 42. Qh5+ Ke3 43. Qxf7 Rxc2) 33. Bxg6 {[%emt 0:02:43]} hxg6 {[%emt 0:00:07]} 34. Qxg6+ {[%emt 0:00:16]} Kf8 {[%emt 0:00:04]} 35. Rdg2 $4 {[%emt 0:01:10]} (35. Rf2 {and life is good for White.} Rcf3 36. Rxf3 (36. Qg8+ Ke7 37. Rxf3 Kd7 38. Rxf7+ Kc6 39. Qe8+ Nd7 40. Qxe6+ Kb5 41. Qxd5+ Nc5) 36... Rxf3 37. Qg8+ Ke7 38. Rg7+ Rf7 39. Rxf7#) 35... Rcf3 {[%emt 0:01:17]} 36. Qg8+ {[%emt 0:01:07]} Ke7 {[%emt 0:00:11]} 37. Qb8 {[%emt 0:01:13]} Nd7 {[%emt 0:02:04]} ({Not} 37... Rxa3 38. Rg8 Kd7 39. Rd8+ Ke7 40. Qc7+) 38. Qh8 {[%emt 0:00:05]} Nf8 {[%emt 0:01:11]} 39. Qh4+ {[%emt 0:01:36]} Kd7 {[%emt 0:00:20]} 40. Rd2 {[%emt 0:01:01]} R3f4 {[%emt 0:01:23]} 41. Qh3 {[%emt 0:32:36]} Qc6 {[%emt 0:01:12]} 42. Qg3 {[%emt 0:00:00]} Rf3 {[%emt 0:05:45]} 43. Qg4 {[%emt 0:00:00]} Rxa3 {[%emt 0:02:13]} 44. Qd4 $19 {[%emt 0:00:00]} Ra4 {[%emt 0:01:27]} 45. Qa7+ {[%emt 0:00:00]} Ke8 {[%emt 0:00:15]} 46. Qb8+ {[%emt 0:00:00]} Ke7 {[%emt 0:00:07]} 47. Qa7+ {[%emt 0:00:00]} Nd7 {[%emt 0:00:09]} 48. Rd4 {[%emt 0:00:00]} Rc4 {[%emt 0:01:28]} 49. c3 {[%emt 0:00:00]} Rxc3 {[%emt 0:02:02]} 50. Qxa5 {[%emt 0:00:00]} Nxe5 {[%emt 0:00:48]} 51. Qb4+ {[%emt 0:00:00]} Qc5 {[%emt 0:00:29]} 0-1

[Event "Czech Youth U16 Boys 2024"]
[Site "Kouty nad Desnou"]
[Date "2024.03.14"]
[Round "7.8"]
[White "Mikolas, Petr"]
[Black "Davidek, Zdenek"]
[Result "1/2-1/2"]
[ECO "D35"]
[WhiteElo "1957"]
[BlackElo "2135"]
[Annotator "RC"]
[PlyCount "65"]
[EventDate "2024.03.10"]
[EventType "swiss"]
[EventCountry "CZE"]
[SourceTitle "playchess.com"]
[Source "ChessBase"]
[SourceQuality "1"]
[TimeControl "40/5400+30:1800+30"]

1. d4 {[%emt 0:00:21]} Nf6 {[%emt 0:00:23]} 2. c4 {[%emt 0:00:21]} e6 {[%emt 0:00:07]} 3. Nc3 {[%emt 0:00:06]} d5 {[%emt 0:00:19]} 4. cxd5 {[%emt 0:00:31]} exd5 {[%emt 0:00:06]} 5. Bg5 {[%emt 0:00:05]} Be7 {[%emt 0:00:06]} 6. e3 {[%emt 0:00:06]} O-O {[%emt 0:01:01]} 7. Bd3 {[%emt 0:00:15]} Nbd7 {[%emt 0:00:38]} 8. Qc2 {[%emt 0:00:34]} c6 {[%emt 0:00:19]} 9. Nge2 {[%emt 0:00:28]} Re8 {[%emt 0:03:32]} 10. O-O {[%emt 0:00:18]} b5 {[%emt 0:00:17]} 11. Rad1 {[%emt 0:08:27]} a5 {[%emt 0:01:27]} 12. f3 {[%emt 0:02:43]} h6 {[%emt 0:17:21]} 13. Bh4 {[%emt 0:03:59]} Ba6 {[%emt 0:01:10]} 14. Kh1 {[%emt 0:07:36]} Nb6 {[%emt 0:07:20]} 15. e4 {[%emt 0:11:58]} b4 {[%emt 0:17:05]} 16. Na4 {[%emt 0:17:47]} Bxd3 {[%emt 0:04:50]} 17. Rxd3 {[%emt 0:00:05]} dxe4 {[%emt 0:01:31]} 18. fxe4 {[%emt 0:00:05]} Nxa4 {[%emt 0:00:04]} 19. Qxa4 {[%emt 0:00:33]} Nxe4 {[%emt 0:02:24]} 20. Bxe7 {[%emt 0:03:05]} Qxe7 {[%emt 0:02:33]} 21. Qxc6 {[%emt 0:07:35]} Rac8 {[%emt 0:00:22]} 22. Qa4 {[%emt 0:03:12]} Qh4 {[%emt 0:06:38]} 23. Kg1 {[%emt 0:00:52]} Nf6 {[%emt 0:01:51]} 24. g3 {[%emt 0:08:32]} Qe4 {[%emt 0:01:26]} 25. Nf4 {[%emt 0:06:04]} g5 {[%emt 0:03:35]} 26. Qd1 {[%emt 0:02:38]} gxf4 {[%emt 0:00:56]} 27. Rxf4 {[%emt 0:00:48]} Rc1 {[%emt 0:01:48]} 28. Qxc1 {[%emt 0:01:06]} Qxd3 {[%emt 0:00:05]} 29. Rxf6 {[%emt 0:00:25]} Qxd4+ {[%emt 0:00:31]} 30. Rf2 {[%emt 0:00:09]} Re2 {[%emt 0:00:33]} 31. Qc8+ {[%emt 0:03:08]} Kg7 {[%emt 0:00:35]} 32. Qf5 {[%emt 0:00:06]} Qd1+ {[%emt 0:01:38]} 33. Rf1 {[%emt 0:00:30]} 1/2-1/2

[Event "Czech Youth U16 Boys 2024"]
[Site "Kouty nad Desnou"]
[Date "2024.03.14"]
[Round "7.9"]
[White "Pressler, Tobias"]
[Black "Zelba, Lukas"]
[Result "0-1"]
[ECO "D00"]
[WhiteElo "1954"]
[BlackElo "1979"]
[Annotator "RC"]
[PlyCount "60"]
[EventDate "2024.03.10"]
[EventType "swiss"]
[EventCountry "CZE"]
[SourceTitle "playchess.com"]
[Source "ChessBase"]
[SourceQuality "1"]
[TimeControl "40/5400+30:1800+30"]

1. d4 {[%emt 0:00:23]} d5 {[%emt 0:00:24]} 2. e3 {[%emt 0:00:32]} c6 {[%emt 0:03:36]} 3. Bd3 {[%emt 0:00:44]} e6 {[%emt 0:00:53]} 4. f4 {[%emt 0:00:20]} f5 {[%emt 0:00:15]} 5. Nf3 {[%emt 0:00:37]} Nf6 {[%emt 0:02:42]} 6. Ne5 {[%emt 0:01:12]} Bd6 {[%emt 0:04:14]} 7. Nd2 {[%emt 0:01:27]} O-O {[%emt 0:10:55]} 8. Ndf3 {[%emt 0:03:43]} Ne4 {[%emt 0:02:24]} 9. O-O {[%emt 0:00:49]} Bd7 {[%emt 0:02:03]} 10. Bd2 {[%emt 0:03:49]} Be8 {[%emt 0:01:34]} 11. g4 {[%emt 0:09:22]} Nd7 {[%emt 0:12:07]} 12. Be1 {[%emt 0:14:38]} Nxe5 {[%emt 0:02:29]} 13. Nxe5 {[%emt 0:06:37]} Bxe5 {[%emt 0:01:04]} 14. dxe5 {[%emt 0:05:31]} Qb6 {[%emt 0:04:24]} 15. Qe2 {[%emt 0:03:41]} Bg6 {[%emt 0:03:16]} 16. Bxe4 {[%emt 0:04:24]} dxe4 {[%emt 0:00:18]} 17. gxf5 {[%emt 0:04:51]} Rxf5 {[%emt 0:00:59]} 18. Bh4 {[%emt 0:07:06]} Bh5 {[%emt 0:01:49]} 19. Qd2 {[%emt 0:00:06]} Bf3 {[%emt 0:02:31]} 20. b3 {[%emt 0:03:46]} Rxf4 {[%emt 0:02:04]} 21. Bg3 {[%emt 0:02:39]} Rd8 {[%emt 0:07:41]} 22. Qc3 {[%emt 0:05:03]} Rf7 {[%emt 0:02:36]} 23. Rf2 {[%emt 0:01:36]} Rd5 {[%emt 0:00:31]} 24. Raf1 {[%emt 0:00:30]} Rfd7 {[%emt 0:03:46]} 25. a4 {[%emt 0:00:26]} Rd1 {[%emt 0:04:46]} 26. b4 {[%emt 0:01:18]} Rxf1+ {[%emt 0:03:18]} 27. Rxf1 {[%emt 0:00:05]} Qd8 {[%emt 0:00:43]} 28. Qc4 {[%emt 0:00:06]} Rd5 {[%emt 0:00:14]} 29. a5 {[%emt 0:00:53]} a6 {[%emt 0:00:11]} 30. c3 {[%emt 0:03:22]} Qg5 {[%emt 0:02:25]} 0-1

[Event "Czech Youth U16 Boys 2024"]
[Site "Kouty nad Desnou"]
[Date "2024.03.14"]
[Round "7.10"]
[White "Tegda, Vojtech"]
[Black "Rybackova, Lucie"]
[Result "0-1"]
[ECO "B10"]
[WhiteElo "1936"]
[BlackElo "1983"]
[Annotator "RC"]
[PlyCount "66"]
[EventDate "2024.03.10"]
[EventType "swiss"]
[EventCountry "CZE"]
[SourceTitle "playchess.com"]
[Source "ChessBase"]
[SourceQuality "1"]
[TimeControl "40/5400+30:1800+30"]

1. e4 {[%emt 0:00:05]} c6 {[%emt 0:00:10]} 2. Nc3 {[%emt 0:00:22]} d5 {[%emt 0:00:14]} 3. Nf3 {[%emt 0:00:31]} dxe4 {[%emt 0:00:10]} 4. Nxe4 {[%emt 0:00:08]} Nf6 {[%emt 0:00:10]} 5. Qe2 {[%emt 0:00:58]} Nxe4 {[%emt 0:00:49]} 6. Qxe4 {[%emt 0:00:07]} Nd7 {[%emt 0:01:44]} 7. Bc4 {[%emt 0:00:30]} Nf6 {[%emt 0:00:44]} 8. Ne5 {[%emt 0:00:40]} e6 {[%emt 0:01:15]} 9. Qe2 {[%emt 0:00:23]} Bd6 {[%emt 0:02:36]} 10. O-O {[%emt 0:06:59]} O-O {[%emt 0:03:09]} 11. d4 {[%emt 0:00:36]} h6 {[%emt 0:09:39]} 12. c3 {[%emt 0:03:42]} Qc7 {[%emt 0:02:14]} 13. Bf4 {[%emt 0:06:21]} Nd5 {[%emt 0:03:03]} 14. Bg3 {[%emt 0:03:16]} b6 {[%emt 0:05:27]} 15. Bb3 {[%emt 0:13:38]} c5 {[%emt 0:07:57]} 16. Rad1 {[%emt 0:03:37]} Bb7 {[%emt 0:10:51]} 17. dxc5 {[%emt 0:08:31]} bxc5 {[%emt 0:00:18]} 18. Rd2 {[%emt 0:01:05]} Nf6 {[%emt 0:12:17]} 19. Rfd1 {[%emt 0:11:11]} Ne4 {[%emt 0:04:55]} 20. Rxd6 {[%emt 0:04:21]} Nxd6 {[%emt 0:00:17]} 21. Nf3 {[%emt 0:00:32]} Rad8 {[%emt 0:04:47]} 22. Qe5 {[%emt 0:03:35]} c4 {[%emt 0:02:27]} 23. Bc2 {[%emt 0:01:13]} Bd5 {[%emt 0:00:33]} 24. Rd4 {[%emt 0:07:20]} f5 {[%emt 0:11:32]} 25. Nh4 {[%emt 0:07:05]} Qf7 {[%emt 0:01:10]} 26. h3 {[%emt 0:03:32]} Qf6 {[%emt 0:02:33]} 27. Qe2 {[%emt 0:02:28]} Ne4 {[%emt 0:02:53]} 28. Bxe4 {[%emt 0:00:43]} fxe4 {[%emt 0:00:08]} 29. Qh5 {[%emt 0:00:33]} Kh7 {[%emt 0:02:26]} 30. Be5 {[%emt 0:01:15]} Qg5 {[%emt 0:00:12]} 31. g4 {[%emt 0:01:25]} Qc1+ {[%emt 0:04:19]} 32. Kg2 {[%emt 0:01:30]} e3+ {[%emt 0:00:30]} 33. f3 {[%emt 0:01:34]} Qc2+ {[%emt 0:00:25]} 0-1

[Event "Czech Youth U16 Boys 2024"]
[Site "Kouty nad Desnou"]
[Date "2024.03.14"]
[Round "7.11"]
[White "Zezula, Matej"]
[Black "Buchtova, Viktorie"]
[Result "1-0"]
[ECO "B38"]
[WhiteElo "1825"]
[BlackElo "1874"]
[Annotator "NA RC"]
[PlyCount "125"]
[EventDate "2024.03.10"]
[EventType "swiss"]
[EventCountry "CZE"]
[SourceTitle "playchess.com"]
[Source "ChessBase"]
[SourceQuality "1"]
[TimeControl "40/5400+30:1800+30"]

1. e4 {[%emt 0:00:06]} c5 {[%emt 0:00:02]} 2. Nf3 {[%emt 0:00:51]} Nc6 {[%emt 0:00:07]} 3. d4 {[%emt 0:01:48]} cxd4 {[%emt 0:00:05]} 4. Nxd4 {[%emt 0:00:09]} g6 {[%emt 0:00:14]} 5. c4 {[%emt 0:00:17]} Bg7 {[%emt 0:00:22]} 6. Be3 {[%emt 0:00:16]} d6 {[%emt 0:00:55]} 7. Nc3 {[%emt 0:02:26]} Nf6 {[%emt 0:00:12]} 8. Be2 {[%emt 0:00:18]} Bd7 {[%emt 0:00:29]} 9. Nc2 {[%emt 0:09:15]} a5 {[%emt 0:04:19]} 10. O-O {[%emt 0:02:29]} O-O {[%emt 0:00:15]} 11. f3 {[%emt 0:01:40] B38: Sizilianisch (Maroczy-Aufbau).} Rc8 {[%emt 0:10:35]} 12. Rc1 {[%emt 0:02:15]} Ne5 {[%emt 0:05:20]} 13. Na3 {[%emt 0:01:32]} Be6 {[%emt 0:10:19]} 14. Nd5 {[%emt 0:02:30]} Ned7 {[%emt 0:06:34]} 15. Qd2 {[%emt 0:14:35]} Nc5 {[%emt 0:02:26]} 16. Rfd1 {[%emt 0:02:30]} Bd7 {[%emt 0:08:53]} 17. Rb1 {[%emt 0:06:00]} Na4 {[%emt 0:20:08]} 18. Bd4 {[%emt 0:04:25]} Nxd5 {[%emt 0:06:23]} 19. cxd5 {[%emt 0:00:16]} Bxd4+ {[%emt 0:00:10]} 20. Qxd4 {[%emt 0:00:30]} Qb6 {[%emt 0:00:06]} 21. Nc4 {[%emt 0:05:23]} Qxd4+ {[%emt 0:01:13]} 22. Rxd4 {[%emt 0:00:09]} Rc5 {[%emt 0:01:15]} 23. Bd1 {[%emt 0:17:46]} Rfc8 {[%emt 0:10:19]} 24. Bb3 {[%emt 0:05:27]} ({Ein No Go ist} 24. Nxd6 Rc1 25. Rxc1 (25. Nxc8 $2 {ist das falsche Schlagen.} Rxb1 26. Nxe7+ Kf8 $19) 25... Rxc1 $17) 24... Bb5 {[%emt 0:06:39]} 25. Nxa5 {[%emt 0:04:37]} Rc1+ $1 {[%emt 0:00:40]} 26. Rxc1 {[%emt 0:02:09]} Rxc1+ {[%emt 0:00:02]} 27. Kf2 {[%emt 0:00:28]} Nc5 {[%emt 0:00:40]} 28. Kg3 {[%emt 0:05:01]} (28. Ke3 $1 $14) 28... b6 $1 {[%emt 0:03:57]} 29. Nc4 {[%emt 0:02:25]} Nxb3 {[%emt 0:00:35]} 30. axb3 {[%emt 0:00:21]} Rc2 $2 {[%emt 0:00:46]} (30... Bxc4 $16 31. Rxc4 (31. bxc4 Rc2 $11) 31... Rb1) 31. Na3 {[%emt 0:06:10]} Rxb2 {[%emt 0:00:27]} 32. Nxb5 {[%emt 0:00:27]} Rxb3 {[%emt 0:00:05]} 33. Na7 {[%emt 0:00:09]} Kg7 {[%emt 0:00:59]} 34. Nc6 {[%emt 0:00:49]} Kf6 {[%emt 0:00:07]} 35. Rb4 {[%emt 0:01:24]} Rxb4 {[%emt 0:01:41]} 36. Nxb4 {[%emt 0:00:06]} e6 {[%emt 0:00:38]} 37. Kf4 {[%emt 0:00:16]} b5 {[%emt 0:00:27]} 38. Ke3 {[%emt 0:00:51]} exd5 39. exd5 {[%emt 0:00:14]} Ke5 {[%emt 0:00:26]} 40. f4+ {[%emt 0:00:22]} Kf5 {[%emt 0:00:45]} 41. g3 {[%emt 0:31:36]} h6 {[%emt 0:20:46]} 42. h3 {[%emt 0:00:00]} (42. Nc6 $142 Kf6 43. Kd3) 42... g5 {[%emt 0:06:27]} 43. g4+ {[%emt 0:00:00]} Kg6 {[%emt 0:01:27]} 44. f5+ {[%emt 0:00:00]} Kf6 {[%emt 0:00:02]} 45. Kd4 {[%emt 0:00:00]} h5 {[%emt 0:02:36]} 46. Nc6 {[%emt 0:00:00]} hxg4 {[%emt 0:00:30]} 47. hxg4 {[%emt 0:00:00]} Kg7 {[%emt 0:00:31]} 48. Kc3 {[%emt 0:00:00]} Kf8 {[%emt 0:00:06]} 49. Kb4 {[%emt 0:00:00]} Ke8 {[%emt 0:00:08]} 50. Kxb5 {[%emt 0:00:00]} Kd7 {[%emt 0:00:04]} 51. Kb6 {[%emt 0:00:00]} Kc8 {[%emt 0:00:16]} 52. Ne7+ {[%emt 0:00:00]} Kd7 {[%emt 0:00:30]} 53. f6 {[%emt 0:00:00]} Kd8 {[%emt 0:00:43]} 54. Kc6 {[%emt 0:00:00]} Ke8 {[%emt 0:00:02]} 55. Kxd6 {[%emt 0:00:00]} Kf8 {[%emt 0:00:26]} 56. Nf5 {[%emt 0:00:00]} Ke8 {[%emt 0:00:23]} 57. Kc7 {[%emt 0:00:00]} Kf8 {[%emt 0:00:03]} 58. d6 {[%emt 0:00:00]} Kg8 {[%emt 0:00:03]} 59. d7 {[%emt 0:00:00]} Kh7 {[%emt 0:00:12]} 60. Ne7 {[%emt 0:00:00]} Kh6 {[%emt 0:00:11]} 61. d8=Q {[%emt 0:00:00]} Kh7 {[%emt 0:00:22]} 62. Qg8+ {[%emt 0:00:00]} Kh6 {[%emt 0:00:04]} 63. Qh8# {[%emt 0:00:00]} 1-0

[Event "Czech Youth U16 Boys 2024"]
[Site "Kouty nad Desnou"]
[Date "2024.03.14"]
[Round "7.12"]
[White "Dvorak, Jan"]
[Black "Buchta, Bartolomej"]
[Result "0-1"]
[ECO "B84"]
[WhiteElo "2154"]
[BlackElo "1913"]
[Annotator "RC"]
[PlyCount "38"]
[EventDate "2024.03.10"]
[EventType "swiss"]
[EventCountry "CZE"]
[SourceTitle "playchess.com"]
[Source "ChessBase"]
[SourceQuality "1"]
[TimeControl "40/5400+30:1800+30"]

1. e4 {[%emt 0:00:03]} c5 {[%emt 0:00:07]} 2. Nf3 {[%emt 0:00:04]} d6 {[%emt 0:00:06]} 3. d4 {[%emt 0:00:04]} cxd4 {[%emt 0:00:03]} 4. Nxd4 {[%emt 0:00:06]} Nf6 {[%emt 0:00:05]} 5. Nc3 {[%emt 0:00:12]} a6 {[%emt 0:00:08]} 6. Be2 {[%emt 0:00:42]} e6 {[%emt 0:00:06]} 7. Be3 {[%emt 0:00:32]} Be7 {[%emt 0:00:28]} 8. Qd2 {[%emt 0:01:09]} Qc7 {[%emt 0:02:48]} 9. f3 {[%emt 0:02:23]} b5 {[%emt 0:00:45]} 10. g4 {[%emt 0:05:24]} h6 {[%emt 0:00:11]} 11. h4 {[%emt 0:03:15]} Bb7 {[%emt 0:00:08]} 12. a3 {[%emt 0:04:25]} Nbd7 {[%emt 0:02:32]} 13. O-O-O {[%emt 0:12:29]} Nc5 {[%emt 0:01:21]} 14. g5 {[%emt 0:01:46]} hxg5 {[%emt 0:00:35]} 15. hxg5 {[%emt 0:00:36]} Nh5 {[%emt 0:00:42]} 16. g6 {[%emt 0:01:34]} fxg6 {[%emt 0:00:52]} 17. Bd3 {[%emt 0:14:57]} e5 {[%emt 0:05:14]} 18. Nde2 {[%emt 0:01:09]} O-O-O {[%emt 0:00:54]} 19. Nd5 {[%emt 0:08:50]} Nb3+ {[%emt 0:00:27]} 0-1

[Event "Czech Youth U16 Boys 2024"]
[Site "Kouty nad Desnou"]
[Date "2024.03.15"]
[Round "8.1"]
[White "Jasso, Matej"]
[Black "Prazak, Daniel"]
[Result "0-1"]
[ECO "C00"]
[WhiteElo "2060"]
[BlackElo "2223"]
[Annotator "RC"]
[PlyCount "108"]
[EventDate "2024.03.10"]
[EventType "swiss"]
[EventCountry "CZE"]
[SourceTitle "playchess.com"]
[Source "ChessBase"]
[SourceQuality "1"]
[TimeControl "40/5400+30:1800+30"]

1. e4 {[%emt 0:00:34]} e6 {[%emt 0:00:21]} 2. d3 {[%emt 0:00:55]} d5 {[%emt 0:00:09]} 3. Qe2 {[%emt 0:00:07]} Nf6 {[%emt 0:00:14]} 4. Nf3 {[%emt 0:00:07]} Nc6 {[%emt 0:00:44]} 5. exd5 {[%emt 0:03:46]} Qxd5 {[%emt 0:01:37]} 6. Nc3 {[%emt 0:00:47]} Bb4 {[%emt 0:01:28]} 7. Bd2 {[%emt 0:00:08]} Qa5 {[%emt 0:00:34]} 8. Ne4 {[%emt 0:07:55]} Nxe4 {[%emt 0:06:57]} 9. dxe4 {[%emt 0:01:26]} Bd7 {[%emt 0:11:30]} 10. c3 {[%emt 0:04:38]} Bd6 {[%emt 0:01:18]} 11. Qb5 {[%emt 0:00:49]} Qxb5 {[%emt 0:01:40]} 12. Bxb5 {[%emt 0:00:18]} a6 {[%emt 0:01:34]} 13. Bd3 {[%emt 0:02:00]} O-O-O {[%emt 0:01:37]} 14. Be3 {[%emt 0:04:29]} Ne5 {[%emt 0:03:00]} 15. Nxe5 {[%emt 0:00:07]} Bxe5 {[%emt 0:00:11]} 16. O-O-O {[%emt 0:06:24]} Bc6 {[%emt 0:01:50]} 17. f3 {[%emt 0:11:00]} h5 {[%emt 0:03:10]} 18. h3 {[%emt 0:01:47]} h4 {[%emt 0:03:51]} 19. Be2 {[%emt 0:01:18]} Bd6 {[%emt 0:01:32]} 20. Bc4 {[%emt 0:12:38]} Rh5 {[%emt 0:01:46]} 21. Rhe1 {[%emt 0:00:30]} Re8 {[%emt 0:03:08]} 22. Kc2 {[%emt 0:04:25]} Ba4+ {[%emt 0:01:12]} 23. Bb3 {[%emt 0:00:28]} Bb5 {[%emt 0:00:26]} 24. Kc1 {[%emt 0:02:20]} Bg3 {[%emt 0:07:28]} 25. Rh1 {[%emt 0:04:47]} Reh8 {[%emt 0:07:26]} 26. Rd2 {[%emt 0:07:57]} Bd6 {[%emt 0:01:32]} 27. Bd1 {[%emt 0:01:30]} Bc6 {[%emt 0:01:43]} 28. f4 {[%emt 0:05:00]} Bc5 {[%emt 0:03:23]} 29. Bxc5 {[%emt 0:02:24]} Rxc5 {[%emt 0:00:23]} 30. Re1 {[%emt 0:00:02]} Rh6 {[%emt 0:07:42]} 31. Bf3 {[%emt 0:01:31]} Rf6 {[%emt 0:02:03]} 32. f5 {[%emt 0:08:27]} Kb8 {[%emt 0:02:04]} 33. fxe6 {[%emt 0:04:47]} Rxe6 {[%emt 0:00:09]} 34. Rd8+ {[%emt 0:01:34]} Ka7 {[%emt 0:00:07]} 35. Rf1 {[%emt 0:00:30]} f6 {[%emt 0:06:16]} 36. Rg8 {[%emt 0:00:29]} Rg5 {[%emt 0:04:13]} 37. Rh8 {[%emt 0:00:32]} Bxe4 {[%emt 0:01:01]} 38. Rxh4 {[%emt 0:00:31]} Bxf3 {[%emt 0:00:43]} 39. gxf3 {[%emt 0:00:04]} Rg2 {[%emt 0:02:58]} 40. Re4 {[%emt 0:00:55]} Rb6 {[%emt 0:07:22]} 41. Rb4 {[%emt 0:02:29]} Rxb4 {[%emt 0:02:36]} 42. cxb4 {[%emt 0:00:38]} Kb6 {[%emt 0:00:15]} 43. f4 {[%emt 0:05:38]} Rg3 {[%emt 0:00:52]} 44. Kc2 {[%emt 0:04:45]} Rxh3 {[%emt 0:00:46]} 45. f5 {[%emt 0:03:05]} Rg3 {[%emt 0:00:36]} 46. Re1 {[%emt 0:02:40]} Kc6 {[%emt 0:01:35]} 47. Re8 {[%emt 0:03:30]} Kd7 {[%emt 0:01:10]} 48. Rb8 {[%emt 0:01:42]} b6 {[%emt 0:00:34]} 49. a4 {[%emt 0:02:33]} Kc6 {[%emt 0:03:44]} 50. Rd8 {[%emt 0:02:06]} Rg5 {[%emt 0:00:23]} 51. Rg8 {[%emt 0:00:06]} Kd5 {[%emt 0:00:45]} 52. Rd8+ {[%emt 0:04:34]} Kc4 {[%emt 0:00:37]} 53. Rd7 {[%emt 0:01:20]} Kxb4 {[%emt 0:00:13]} 54. Rxc7 {[%emt 0:00:07]} Kxa4 {[%emt 0:00:06]} 0-1

[Event "Czech Youth U16 Boys 2024"]
[Site "Kouty nad Desnou"]
[Date "2024.03.15"]
[Round "8.2"]
[White "Juracak, David"]
[Black "Hladky, Tadeas"]
[Result "1/2-1/2"]
[ECO "E24"]
[WhiteElo "1944"]
[BlackElo "2056"]
[Annotator "RC"]
[PlyCount "65"]
[EventDate "2024.03.10"]
[EventType "swiss"]
[EventCountry "CZE"]
[SourceTitle "playchess.com"]
[Source "ChessBase"]
[SourceQuality "1"]
[TimeControl "40/5400+30:1800+30"]

1. d4 {[%emt 0:00:05]} Nf6 {[%emt 0:00:12]} 2. c4 {[%emt 0:00:30]} e6 {[%emt 0:00:03]} 3. Nc3 {[%emt 0:01:00]} Bb4 {[%emt 0:00:07]} 4. a3 {[%emt 0:01:09]} Bxc3+ {[%emt 0:00:08]} 5. bxc3 {[%emt 0:00:31]} c5 {[%emt 0:00:10]} 6. f3 {[%emt 0:01:55]} O-O {[%emt 0:02:23]} 7. e4 {[%emt 0:01:33]} d6 {[%emt 0:00:59]} 8. Bd3 {[%emt 0:00:46]} Nc6 {[%emt 0:02:15]} 9. Ne2 {[%emt 0:02:53]} Ne8 {[%emt 0:06:42]} 10. O-O {[%emt 0:14:20]} b6 {[%emt 0:02:58]} 11. f4 {[%emt 0:11:04]} f5 {[%emt 0:00:29]} 12. Ng3 {[%emt 0:07:44]} Na5 {[%emt 0:24:15]} 13. Rb1 {[%emt 0:21:00]} Qc7 {[%emt 0:14:36]} 14. d5 {[%emt 0:03:38]} exd5 {[%emt 0:02:56]} 15. cxd5 {[%emt 0:00:46]} c4 {[%emt 0:02:29]} 16. Bc2 {[%emt 0:00:12]} fxe4 {[%emt 0:10:33]} 17. Nxe4 {[%emt 0:01:23]} Nf6 {[%emt 0:00:50]} 18. Nxf6+ {[%emt 0:03:09]} Rxf6 {[%emt 0:00:02]} 19. Be3 {[%emt 0:00:45]} Bf5 {[%emt 0:03:16]} 20. Bd4 {[%emt 0:01:07]} Rf7 {[%emt 0:00:42]} 21. g4 {[%emt 0:06:41]} Bxc2 {[%emt 0:01:56]} 22. Qxc2 {[%emt 0:00:03]} Nb3 {[%emt 0:00:56]} 23. Rxb3 {[%emt 0:00:28]} cxb3 {[%emt 0:00:04]} 24. Qxb3 {[%emt 0:00:17]} Qe7 {[%emt 0:04:41]} 25. Qc2 {[%emt 0:05:24]} h5 {[%emt 0:09:10]} 26. h3 {[%emt 0:03:26]} Raf8 {[%emt 0:01:22]} 27. f5 {[%emt 0:00:47]} Qg5 {[%emt 0:00:43]} 28. Qg2 {[%emt 0:00:38]} hxg4 {[%emt 0:00:15]} 29. hxg4 {[%emt 0:00:25]} Re8 {[%emt 0:00:43]} 30. Qf3 {[%emt 0:03:57]} Ref8 {[%emt 0:03:47]} 31. Qg2 {[%emt 0:02:01]} Re7 {[%emt 0:01:37]} 32. Qf3 {[%emt 0:00:45]} Ref7 {[%emt 0:01:22]} 33. Qg2 {[%emt 0:00:07]} 1/2-1/2